fUSD/lending_fUSD_20250930
["ID","MTS","AMOUNT","RATE_DAILY","PERIOD"]
[388477743,1759190415698,1289.38,0.000297,120]
[388477745,1759190492651,150.0,0.00028687,120]
[388477809,1759190671314,150.0,0.00028906,120]
[388477814,1759190778074,800.0,0.00030137,120]
[388477815,1759190802900,500.0,0.00030137,120]
[388477817,1759190833409,150.0,0.00030137,120]
[388477819,1759190911274,150.0,0.00029882,120]
[388477929,1759191032382,-3043.23,0.00016602,2]
[388477930,1759191032392,-356.57,0.00017565,2]
[388477931,1759191032402,-965.9534475,0.00017737,2]
[388477932,1759191032412,-150.0,0.00017738,7]
[388477933,1759191032422,-474.44399432,0.00017986,2]
[388477934,1759191032431,-1200.0,0.00017999,2]
[388477935,1759191032442,-300.0,0.00017999,2]
[388477936,1759191032451,-2833.34050369,0.00018,2]
[388477937,1759191032465,-200.0,0.00018,2]
[388477938,1759191032476,-150.0,0.000181,2]
[388477939,1759191032485,-294.35803713,0.000181,2]
[388477940,1759191032495,-300.0,0.000182,2]
[388477941,1759191032506,-2342.264,0.00018205,2]
[388477942,1759191032516,-4113.0,0.00018205,2]
[388477943,1759191032525,-250.0,0.00018231,2]
[388477944,1759191032535,-306.72,0.0001829,2]
[388477945,1759191032547,-1613.15,0.000183,2]
[388477946,1759191032557,-934.26,0.000183,2]
[388477947,1759191032567,-802.51,0.000183,2]
[388477948,1759191032577,-700.0,0.0001831,2]
[388477949,1759191032587,-863.6148668,0.00018313,2]
[388477950,1759191032597,-239.84119403,0.00018389,2]
[388477951,1759191032607,-300.0,0.0001839,2]
[388477952,1759191032617,-300.0,0.00018399,2]
[388477953,1759191032627,-806.74,0.000184,2]
[388477954,1759191032637,-1041.11,0.000184,2]
[388477955,1759191032647,-806.23,0.000184,2]
[388477956,1759191032657,-1626.76,0.000184,2]
[388477957,1759191032666,-473.47,0.000184,2]
[388477958,1759191032676,-806.74,0.000184,2]
[388477959,1759191032685,-329.07062826,0.00018418,2]
[388477960,1759191032695,-534.481,0.00018472,2]
[388477961,1759191032705,-4656.26,0.000185,2]
[388477962,1759191032715,-1365.51066328,0.00018579,2]
[388477963,1759191032724,-500.0,0.00018611,2]
[388477964,1759191032734,-4715.8257097,0.00018624,2]
[388477965,1759191032744,-500.0,0.00018629,2]
[388477967,1759191032753,-500.0,0.00018629,2]
[388477970,1759191032763,-500.0,0.00018629,2]
[388477971,1759191032773,-160.90334466,0.00018629,2]
[388477974,1759191032783,-203.5263431,0.00018629,2]
[388477976,1759191032793,-200.0,0.0001863,2]
[388477978,1759191032804,-474.44399432,0.0001863,3]
[388477979,1759191032813,-1852.64,0.0001863,3]
[388477980,1759191032823,-1852.64,0.0001863,3]
[388477981,1759191032833,-1852.64,0.0001863,3]
[388477982,1759191032842,-1852.64,0.0001863,3]
[388477983,1759191032852,-1852.64,0.0001863,3]
[388477984,1759191032862,-1852.64,0.0001863,3]
[388477985,1759191032871,-1852.64,0.0001863,3]
[388477986,1759191032881,-1852.64,0.0001863,3]
[388477987,1759191032891,-1852.64,0.0001863,3]
[388477988,1759191032900,-1852.64,0.0001863,3]
[388477989,1759191032911,-1852.64,0.0001863,3]
[388477990,1759191032921,-814.77609912,0.0001863,3]
[388477991,1759191032938,-1037.86390088,0.0001863,3]
[388477992,1759191032948,-1852.64,0.0001863,3]
[388477993,1759191032958,-1852.64,0.0001863,3]
[388477994,1759191032968,-1852.64,0.0001863,3]
[388477995,1759191032978,-1852.64,0.0001863,3]
[388477996,1759191032988,-1852.64,0.0001863,3]
[388477997,1759191032998,-1852.64,0.0001863,3]
[388477998,1759191033008,-1852.64,0.0001863,3]
[388477999,1759191033017,-1852.64,0.0001863,3]
[388478000,1759191033027,-1852.64,0.0001863,3]
[388478001,1759191033037,-1852.64,0.0001863,3]
[388478002,1759191033048,-1852.64,0.0001863,3]
[388478003,1759191033057,-1852.79108174,0.0001863,3]
[388478004,1759191033067,-169.30464,0.0001863,2]
[388478005,1759191033077,-150.28,0.0001863,2]
[388478007,1759191033088,-152.93,0.0001863,2]
[388478009,1759191033098,-754.11,0.0001863,2]
[388478011,1759191033108,-200.0,0.00018643,2]
[388478012,1759191033119,-200.0,0.00018643,2]
[388478013,1759191033128,-151.0,0.00018643,2]
[388478014,1759191033139,-200.0,0.00018643,2]
[388478015,1759191033148,-151.0,0.00018643,2]
[388478016,1759191033163,-200.0,0.00018643,2]
[388478017,1759191033172,-200.0,0.00018643,2]
[388478018,1759191033182,-322.6107,0.00018643,2]
[388478019,1759191033192,-200.0,0.00018643,2]
[388478020,1759191033201,-200.0,0.00018643,2]
[388478021,1759191033211,-151.0,0.00018643,2]
[388478022,1759191033221,-200.0,0.00018643,2]
[388478023,1759191033230,-151.0,0.00018643,2]
[388478024,1759191033239,-200.0,0.00018643,2]
[388478025,1759191033248,-200.0,0.00018643,2]
[388478026,1759191033258,-151.0,0.00018643,2]
[388478027,1759191033267,-200.0,0.00018643,2]
[388478028,1759191033277,-151.0,0.00018643,2]
[388478029,1759191033287,-228.39833933,0.00018643,2]
[388478030,1759191033296,-151.0,0.00018643,2]
[388478031,1759191033307,-151.0,0.00018643,2]
[388478032,1759191033316,-151.0,0.00018643,2]
[388478033,1759191033326,-200.0,0.00018643,2]
[388478034,1759191033336,-151.0,0.00018643,2]
[388478035,1759191033346,-200.0,0.00018643,2]
[388478036,1759191033355,-623.58710448,0.00018643,2]
[388478037,1759191033365,-368.98273374,0.00018643,2]
[388478038,1759191033374,-200.0,0.00018643,2]
[388478039,1759191033384,-500.0,0.00018643,2]
[388478040,1759191033394,-525.72651971,0.00018643,2]
[388478041,1759191033404,-387.70440098,0.00018649,2]
[388478042,1759191033414,-4715.82570967,0.00018655,2]
[388478043,1759191033426,-524.65588124,0.00018673,2]
[388478044,1759191033436,-459.0,0.00018674,2]
[388478045,1759191033446,-500.0,0.00018674,2]
[388478046,1759191033456,-259.02512706,0.00018674,2]
[388478047,1759191033468,-150.0,0.00018674,2]
[388478048,1759191033485,-485.0,0.00018674,2]
[388478049,1759191033495,-500.0,0.00018674,2]
[388478050,1759191033504,-1516.0,0.00018674,2]
[388478051,1759191033514,-500.0,0.00018674,2]
[388478052,1759191033524,-150.0,0.00018674,2]
[388478053,1759191033533,-174.79476901,0.00018674,2]
[388478054,1759191033543,-250.0,0.00018674,2]
[388478055,1759191033553,-500.0,0.00018674,2]
[388478056,1759191033563,-150.0,0.00018674,2]
[388478057,1759191033573,-150.0,0.00018674,2]
[388478058,1759191033583,-150.0,0.00018674,2]
[388478059,1759191033593,-500.0,0.00018674,2]
[388478060,1759191033602,-280.0,0.00018674,2]
[388478061,1759191033612,-150.0,0.00018674,2]
[388478062,1759191033622,-500.0,0.00018674,2]
[388478063,1759191033632,-150.0,0.00018674,2]
[388478064,1759191033642,-500.0,0.00018674,2]
[388478065,1759191033652,-4715.82570967,0.00018685,2]
[388478066,1759191033662,-151.0,0.00018695,2]
[388478067,1759191034120,-100841.23199203,0.00018698,2]
[388478068,1759191034144,-18721.23796365,0.00018698,2]
[388478101,1759191038518,-647.7111501,0.00018313,2]
[388478102,1759191038537,-228.32163132,0.00018697,2]
[388478103,1759191038547,-628.23725156,0.00018697,2]
[388478104,1759191038559,-1088.14785629,0.00018698,2]
[388478105,1759191038571,-493.91381302,0.00018698,2]
[388478106,1759191038583,-1147.47350923,0.00018698,2]
[388478107,1759191038604,-353.47052981,0.00018698,2]
[388478130,1759191041622,-1376.26749287,0.00018698,2]
[388478134,1759191044395,-425.20792,0.00018698,2]
[388478135,1759191044493,-316.220239,0.00018698,2]
[388478141,1759191046346,-567.29271618,0.00018698,2]
[388478188,1759191271308,150.0,0.00028581,120]
[388478192,1759191417868,161.47,8.883e-05,2]
[388478193,1759191418074,161.47,0.00013325,2]
[388478195,1759191538852,1913.5145691,0.00030137,120]
[388478201,1759191656801,159.1,0.0003013,120]
[388478205,1759191961689,827.66,0.00030136,120]
[388478206,1759191961931,827.66,0.00030136,120]
[388478207,1759191962183,827.66,0.00030136,120]
[388478208,1759191962452,827.66,0.00030136,120]
[388478209,1759191963085,827.66,0.00030136,120]
[388478210,1759191968060,827.66,0.00030136,120]
[388478211,1759191968107,827.66,0.00030136,120]
[388478212,1759191968155,827.66,0.00030136,120]
[388478213,1759191968198,827.66,0.00030136,120]
[388478214,1759191968235,827.66,0.00030136,120]
[388478215,1759191968276,827.66,0.00030136,120]
[388478216,1759191968338,500.0,0.00030136,120]
[388478217,1759191968381,827.66,0.00030136,120]
[388478218,1759191968535,500.0,0.00030136,120]
[388478219,1759191968602,827.66,0.00030136,120]
[388478220,1759191968658,500.0,0.00030136,120]
[388478221,1759191968706,827.66,0.00030136,120]
[388478222,1759191968737,500.0,0.00030136,120]
[388478223,1759191968769,827.66,0.00030136,120]
[388478224,1759191968804,500.0,0.00030136,120]
[388478225,1759191968837,827.66,0.00030136,120]
[388478226,1759191968870,500.0,0.00030136,120]
[388478227,1759191968903,827.66,0.00030136,120]
[388478228,1759191968961,500.0,0.00030136,120]
[388478229,1759191969037,827.66,0.00030136,120]
[388478230,1759191969100,500.0,0.00030136,120]
[388478231,1759191969153,827.66,0.00030136,120]
[388478232,1759191985128,-315.9534475,0.00017374,2]
[388478233,1759192024559,-247.40201957,0.00016602,2]
[388478234,1759192028659,-2.03798043,0.00016602,2]
[388478254,1759192231430,-1065.38556006,0.00017374,2]
[388478255,1759192231440,-1381.33900756,0.00017388,2]
[388478256,1759192231450,-1381.33900756,0.00017431,2]
[388478257,1759192231460,-478.80278792,0.00017446,2]
[388478258,1759192231472,-847.87333955,0.00017446,2]
[388478259,1759192231543,-54.66288009,0.00017446,2]
[388478260,1759192231553,-1381.33900756,0.00017458,2]
[388478261,1759192231562,-1381.33900756,0.00017466,2]
[388478262,1759192231572,-1381.33900756,0.00017481,2]
[388478263,1759192231582,-345.27,0.00017671,2]
[388478264,1759192231591,-173.5,0.00017679,2]
[388478265,1759192231600,-2.79132225,0.0001776,2]
[388478282,1759192237316,-1101.699,0.0001776,2]
[388478328,1759192239410,-378.45581873,0.0001776,2]
[388478329,1759192239506,-279.89771197,0.0001776,2]
[388478343,1759192242487,-305.70149978,0.0001776,2]
[388478344,1759192242647,-1451.69464727,0.0001776,2]
[388478345,1759192242657,-161.47,0.00017766,2]
[388478346,1759192242667,-178.28,0.00017767,2]
[388478347,1759192242677,-150.0,0.00017768,7]
[388478348,1759192242688,-2149.99,0.0001789,2]
[388478349,1759192242698,-1200.0,0.00017999,2]
[388478350,1759192242707,-444.0,0.00017999,2]
[388478351,1759192242718,-184.54481607,0.00017999,2]
[388478352,1759192242727,-57910.41954976,0.00018,2]
[388478353,1759192242737,-1172.98211521,0.00018,2]
[388478354,1759192242747,-700.0,0.00018013,2]
[388478355,1759192242757,-152.0,0.00018207,3]
[388478356,1759192242767,-689.13651495,0.00018233,2]
[388478357,1759192242777,-239.84119403,0.00018233,2]
[388478358,1759192242787,-154.02089282,0.00018241,2]
[388478359,1759192242797,-787.0,0.00018244,2]
[388478360,1759192242807,-1263.0,0.00018244,2]
[388478361,1759192242817,-4113.0,0.00018244,2]
[388478362,1759192242827,-3398.0,0.00018244,2]
[388478363,1759192242837,-175.48,0.00018434,2]
[388478364,1759192242847,-4190.64,0.000185,2]
[388478365,1759192242857,-150.06,0.000185,2]
[388478366,1759192242867,-150.28,0.000185,2]
[388478367,1759192242877,-151.6,0.000185,2]
[388478368,1759192242887,-151.21,0.000185,2]
[388478369,1759192242897,-823.57,0.000185,2]
[388478370,1759192242908,-895.92,0.000185,2]
[388478372,1759192242918,-1644.63,0.000185,2]
[388478374,1759192242935,-175.48,0.000185,2]
[388478375,1759192242946,-175.48,0.000185,2]
[388478376,1759192242956,-473.38,0.000185,2]
[388478377,1759192242966,-151.23,0.0001856,2]
[388478378,1759192242977,-150.8,0.0001856,2]
[388478379,1759192242988,-151.1,0.0001856,2]
[388478380,1759192242998,-152.83,0.0001856,2]
[388478381,1759192243008,-150.5,0.0001856,2]
[388478382,1759192243018,-152.67,0.0001856,2]
[388478383,1759192243029,-173.5,0.00018563,2]
[388478384,1759192243039,-2000.0,0.000186,2]
[388478385,1759192243049,-200.0,0.00018639,2]
[388478386,1759192243059,-597.235,0.00018639,2]
[388478387,1759192243070,-565.0,0.00018653,2]
[388478388,1759192243080,-469.67,0.0001866,2]
[388478389,1759192243091,-168.0,0.00018676,2]
[388478390,1759192243102,-4650.74015962,0.00018679,2]
[388478391,1759192243112,-151.0,0.00018687,2]
[388478392,1759192243122,-151.0,0.00018687,2]
[388478393,1759192243131,-151.0,0.00018687,2]
[388478394,1759192243141,-151.0,0.00018687,2]
[388478395,1759192243152,-151.0,0.00018687,2]
[388478396,1759192243162,-151.0,0.00018687,2]
[388478397,1759192243172,-151.0,0.00018687,2]
[388478398,1759192243182,-151.0,0.00018687,2]
[388478399,1759192243192,-151.0,0.00018687,2]
[388478400,1759192243202,-151.0,0.00018687,2]
[388478401,1759192243212,-151.0,0.00018687,2]
[388478402,1759192243222,-151.0,0.00018687,2]
[388478403,1759192243232,-322.6107,0.00018687,2]
[388478404,1759192243242,-151.0,0.00018687,2]
[388478405,1759192243252,-151.0,0.00018687,2]
[388478406,1759192243262,-151.0,0.00018687,2]
[388478407,1759192243272,-151.0,0.00018687,2]
[388478408,1759192243282,-745.48445974,0.00018687,2]
[388478409,1759192243292,-500.0,0.00018687,2]
[388478410,1759192243302,-500.0,0.00018687,2]
[388478411,1759192243320,-1740.9672327,0.00018692,2]
[388478412,1759192243331,-2050.2960001,0.00018692,2]
[388478413,1759192243341,-150.25,0.00018698,2]
[388478414,1759192243352,-151.44,0.00018698,2]
[388478415,1759192243362,-152.88,0.00018698,2]
[388478416,1759192243373,-15694.42563187,0.00018698,2]
[388478417,1759192243383,-151.0,0.00018698,2]
[388478418,1759192243394,-151.0,0.00018698,2]
[388478419,1759192243408,-153.21734823,0.00018698,2]
[388478420,1759192243419,-222.35343,0.00018698,2]
[388478421,1759192243429,-350.72,0.000187,2]
[388478422,1759192243441,-1195.54,0.000187,2]
[388478423,1759192243451,-800.21,0.000187,2]
[388478424,1759192243461,-412.21,0.000187,2]
[388478425,1759192243472,-167.57,0.000187,2]
[388478426,1759192243482,-385.0,0.000187,2]
[388478427,1759192243494,-786.0,0.000187,2]
[388478428,1759192243504,-243.0,0.000187,2]
[388478429,1759192243514,-4650.7401596,0.00018704,2]
[388478430,1759192243525,-4650.7401596,0.00018728,2]
[388478431,1759192243535,-443.0,0.0001873,2]
[388478432,1759192243546,-464.0,0.0001873,2]
[388478433,1759192243556,-500.0,0.0001873,2]
[388478434,1759192243566,-1453.0,0.0001873,2]
[388478435,1759192243576,-150.0,0.0001873,2]
[388478436,1759192243587,-1361.0,0.0001873,2]
[388478437,1759192243598,-150.0,0.0001873,2]
[388478438,1759192243608,-500.0,0.0001873,2]
[388478439,1759192243619,-500.0,0.0001873,2]
[388478440,1759192243630,-150.0,0.0001873,2]
[388478441,1759192243640,-205.79272368,0.00018736,2]
[388478442,1759192243651,-168.0,0.00018738,2]
[388478443,1759192243662,-240.07055737,0.00018746,2]
[388478444,1759192243673,-4650.7401596,0.00018753,2]
[388478445,1759192243683,-168.0,0.00018756,2]
[388478446,1759192243694,-2500.0,0.0001876,2]
[388478447,1759192243712,-348.9339609,0.0001876,2]
[388478448,1759192243723,-440.0,0.00018773,2]
[388478449,1759192243734,-4650.7401596,0.00018777,2]
[388478450,1759192243745,-5000.0,0.00018778,2]
[388478451,1759192243755,-161.23326321,0.0001878,2]
[388478452,1759192243766,-318.49171746,0.0001878,2]
[388478453,1759192243777,-309.28565492,0.0001878,2]
[388478454,1759192243788,-1000.0,0.000188,2]
[388478455,1759192243798,-4650.7401596,0.00018802,2]
[388478456,1759192243809,-4650.7401596,0.00018826,2]
[388478457,1759192243819,-151.0,0.00018833,2]
[388478458,1759192243830,-151.0,0.00018833,2]
[388478459,1759192243841,-151.0,0.00018833,2]
[388478460,1759192243854,-151.0,0.00018833,2]
[388478461,1759192243871,-151.0,0.00018833,2]
[388478462,1759192243881,-151.0,0.00018833,2]
[388478463,1759192243892,-151.0,0.00018833,2]
[388478464,1759192243903,-151.0,0.00018833,2]
[388478465,1759192243913,-151.0,0.00018833,2]
[388478466,1759192243924,-151.0,0.00018833,2]
[388478467,1759192243934,-151.0,0.00018833,2]
[388478468,1759192243946,-151.0,0.00018833,2]
[388478469,1759192243957,-151.0,0.00018833,2]
[388478470,1759192243967,-151.0,0.00018833,2]
[388478471,1759192243978,-151.0,0.00018833,2]
[388478472,1759192243989,-250.544346,0.00018833,2]
[388478473,1759192244002,-250.544346,0.00018833,2]
[388478474,1759192244012,-250.544346,0.00018833,2]
[388478475,1759192244023,-168.0,0.00018835,2]
[388478476,1759192244034,-218.30179372,0.00018846,2]
[388478477,1759192244044,-151.0,0.00018846,2]
[388478478,1759192244054,-151.0,0.00018846,2]
[388478479,1759192244065,-151.0,0.00018846,2]
[388478480,1759192244075,-151.0,0.00018846,2]
[388478481,1759192244086,-151.0,0.00018846,2]
[388478482,1759192244096,-151.0,0.00018846,2]
[388478483,1759192244108,-151.0,0.00018846,2]
[388478484,1759192244119,-151.0,0.00018846,2]
[388478485,1759192244130,-151.0,0.00018846,2]
[388478486,1759192244140,-151.0,0.00018846,2]
[388478487,1759192244151,-343.3,0.00018849,2]
[388478488,1759192244161,-343.3,0.00018849,2]
[388478489,1759192244172,-4650.7401596,0.00018851,2]
[388478490,1759192244182,-439.7660761,0.00018858,2]
[388478491,1759192244193,-159.82514193,0.00018858,2]
[388478492,1759192244203,-491912.67051356,0.00018859,2]
[388478493,1759192244215,-151.0,0.00018859,2]
[388478494,1759192244226,-151.0,0.00018859,2]
[388478495,1759192244236,-151.0,0.00018859,2]
[388478496,1759192244247,-250.544346,0.00018859,2]
[388478497,1759192244258,-151.0,0.00018859,2]
[388478498,1759192244268,-243.880302,0.00018859,2]
[388478499,1759192244279,-250.544346,0.00018859,2]
[388478500,1759192244289,-250.544346,0.00018859,2]
[388478501,1759192244300,-266.42423729,0.0001887,2]
[388478502,1759192244312,-150.0,0.0001887,2]
[388478503,1759192244326,-2174.59,0.0001887,2]
[388478504,1759192244337,-150.2,0.0001887,2]
[388478505,1759192244348,-150.2,0.0001887,2]
[388478506,1759192244359,-150.2,0.0001887,2]
[388478507,1759192244371,-150.2,0.0001887,2]
[388478508,1759192244382,-150.2,0.0001887,2]
[388478509,1759192244393,-150.2,0.0001887,2]
[388478510,1759192244407,-150.2,0.0001887,2]
[388478511,1759192244417,-150.2,0.0001887,2]
[388478512,1759192244428,-150.2,0.0001887,2]
[388478513,1759192244439,-150.2,0.0001887,2]
[388478514,1759192244450,-150.2,0.0001887,2]
[388478515,1759192244461,-150.2,0.0001887,2]
[388478516,1759192244471,-150.2,0.0001887,2]
[388478517,1759192244484,-150.2,0.0001887,2]
[388478518,1759192244494,-150.2,0.0001887,2]
[388478519,1759192244504,-150.2,0.0001887,2]
[388478520,1759192244515,-150.2,0.0001887,2]
[388478521,1759192244525,-150.2,0.0001887,2]
[388478522,1759192244535,-150.2,0.0001887,2]
[388478523,1759192244548,-197.45673894,0.0001887,2]
[388478524,1759192244558,-150.2,0.0001887,2]
[388478525,1759192244568,-150.2,0.0001887,2]
[388478526,1759192244579,-150.2,0.0001887,2]
[388478527,1759192244588,-150.2,0.0001887,2]
[388478528,1759192244599,-150.2,0.0001887,2]
[388478529,1759192244609,-150.2,0.0001887,2]
[388478530,1759192244620,-150.2,0.0001887,2]
[388478531,1759192244631,-150.2,0.0001887,2]
[388478532,1759192244641,-150.2,0.0001887,2]
[388478533,1759192244653,-150.2,0.0001887,2]
[388478534,1759192244664,-150.2,0.0001887,2]
[388478535,1759192244674,-150.2,0.0001887,2]
[388478536,1759192244685,-1000.0,0.00018872,2]
[388478537,1759192244695,-1000.0,0.00018872,2]
[388478538,1759192244705,-500.0,0.00018873,2]
[388478539,1759192244715,-337.0815596,0.00018873,2]
[388478540,1759192244726,-500.0,0.00018873,2]
[388478541,1759192244736,-500.0,0.00018873,2]
[388478542,1759192244747,-500.0,0.00018873,2]
[388478543,1759192244757,-500.0,0.00018873,2]
[388478544,1759192244767,-500.0,0.00018873,2]
[388478545,1759192244777,-500.0,0.00018873,2]
[388478546,1759192244788,-151.0,0.00018873,2]
[388478547,1759192244799,-151.0,0.00018873,2]
[388478548,1759192244810,-162.347054,0.00018873,2]
[388478549,1759192244820,-162.347054,0.00018873,2]
[388478550,1759192244831,-162.347054,0.00018873,2]
[388478551,1759192244841,-162.347054,0.00018873,2]
[388478552,1759192244852,-151.0,0.00018873,2]
[388478553,1759192244863,-151.0,0.00018873,2]
[388478554,1759192244874,-151.0,0.00018873,2]
[388478555,1759192244886,-252.142394,0.00018873,2]
[388478556,1759192244896,-151.0,0.00018873,2]
[388478557,1759192244906,-182.783943,0.00018873,2]
[388478558,1759192244918,-182.783943,0.00018873,2]
[388478559,1759192244928,-182.783943,0.00018873,2]
[388478560,1759192244939,-182.783943,0.00018873,2]
[388478561,1759192244949,-151.0,0.00018873,2]
[388478562,1759192244959,-229.229506,0.00018873,2]
[388478563,1759192244970,-477.724833,0.00018873,2]
[388478564,1759192244981,-477.724833,0.00018873,2]
[388478565,1759192244991,-151.0,0.00018873,2]
[388478566,1759192245001,-151.0,0.00018873,2]
[388478567,1759192245011,-151.0,0.00018873,2]
[388478568,1759192245022,-151.0,0.00018873,2]
[388478569,1759192245032,-205.431788,0.00018873,2]
[388478570,1759192245043,-151.0,0.00018873,2]
[388478571,1759192245054,-151.0,0.00018873,2]
[388478572,1759192245064,-151.0,0.00018873,2]
[388478573,1759192245074,-151.0,0.00018873,2]
[388478574,1759192245084,-4650.7401596,0.00018875,2]
[388478575,1759192245095,-151.0,0.00018878,2]
[388478576,1759192245105,-151.0,0.00018878,2]
[388478577,1759192245116,-151.0,0.00018878,2]
[388478578,1759192245126,-155.0,0.00018878,2]
[388478579,1759192245137,-1803.35,0.00018879,5]
[388478580,1759192245148,-1803.35,0.00018879,5]
[388478581,1759192245158,-1803.35,0.00018879,5]
[388478582,1759192245170,-1803.35,0.00018879,5]
[388478583,1759192245181,-1803.35,0.00018879,5]
[388478584,1759192245191,-1803.35,0.00018879,5]
[388478585,1759192245202,-1803.35,0.00018879,5]
[388478587,1759192245212,-1803.35,0.00018879,5]
[388478589,1759192245222,-1803.35,0.00018879,5]
[388478591,1759192245233,-1803.35,0.00018879,5]
[388478593,1759192245243,-1803.35,0.00018879,5]
[388478595,1759192245253,-1803.35,0.00018879,5]
[388478597,1759192245264,-1803.35,0.00018879,5]
[388478599,1759192245273,-1803.35,0.00018879,5]
[388478600,1759192245284,-1803.35,0.00018879,5]
[388478601,1759192245294,-1803.35,0.00018879,5]
[388478602,1759192245305,-1803.35,0.00018879,5]
[388478603,1759192245315,-1803.35,0.00018879,5]
[388478604,1759192245326,-1803.35,0.00018879,5]
[388478605,1759192245336,-1803.35,0.00018879,5]
[388478606,1759192245346,-1803.35,0.00018879,5]
[388478607,1759192245356,-1803.35,0.00018879,5]
[388478608,1759192245366,-1803.35,0.00018879,5]
[388478609,1759192245376,-1803.36108329,0.00018879,5]
[388478610,1759192245387,-1000.0,0.00018879,2]
[388478611,1759192245398,-1000.0,0.00018879,2]
[388478612,1759192245410,-15939.57781522,0.00018879,2]
[388478613,1759192245420,-151.0,0.00018879,2]
[388478614,1759192245430,-162.347054,0.00018879,2]
[388478615,1759192245440,-162.347054,0.00018879,2]
[388478616,1759192245451,-162.347054,0.00018879,2]
[388478617,1759192245461,-162.347054,0.00018879,2]
[388478618,1759192245471,-151.0,0.00018879,2]
[388478619,1759192245482,-151.0,0.00018879,2]
[388478620,1759192245492,-151.0,0.00018879,2]
[388478621,1759192245502,-182.783943,0.00018879,2]
[388478622,1759192245512,-182.783943,0.00018879,2]
[388478623,1759192245522,-182.783943,0.00018879,2]
[388478624,1759192245532,-182.783943,0.00018879,2]
[388478625,1759192245543,-151.0,0.00018879,2]
[388478626,1759192245552,-151.0,0.00018879,2]
[388478627,1759192245563,-250.544346,0.00018879,2]
[388478628,1759192245572,-250.544346,0.00018879,2]
[388478629,1759192245583,-250.544346,0.00018879,2]
[388478630,1759192245593,-45841.37639959,0.0001888,2]
[388478631,1759192245611,-319.16000001,0.0001888,2]
[388478632,1759192245907,-250.544346,0.00018833,2]
[388478633,1759192245917,-250.544346,0.00018859,2]
[388478634,1759192245927,-150.2,0.0001887,2]
[388478635,1759192245938,-150.2,0.0001887,2]
[388478636,1759192245950,-150.2,0.0001887,2]
[388478638,1759192245960,-150.2,0.0001887,2]
[388478639,1759192245970,-150.2,0.0001887,2]
[388478640,1759192245979,-150.2,0.0001887,2]
[388478641,1759192245989,-150.2,0.0001887,2]
[388478642,1759192245999,-150.2,0.0001887,2]
[388478643,1759192246009,-150.2,0.0001887,2]
[388478645,1759192246019,-150.2,0.0001887,2]
[388478646,1759192246029,-150.2,0.0001887,2]
[388478647,1759192246038,-150.2,0.0001887,2]
[388478648,1759192246048,-150.2,0.0001887,2]
[388478649,1759192246057,-150.2,0.0001887,2]
[388478650,1759192246067,-150.2,0.0001887,2]
[388478651,1759192246078,-150.2,0.0001887,2]
[388478652,1759192246088,-150.2,0.0001887,2]
[388478653,1759192246098,-150.2,0.0001887,2]
[388478654,1759192246108,-150.2,0.0001887,2]
[388478655,1759192246118,-150.2,0.0001887,2]